[Event "Titled Tuesday Blitz November 15 Early 2022"]
[White "Lehtosaari, Mauri"]
[Black "Goh, Zi Han"]
[WhiteFideId "501999"]
[BlackFideId "5819156"]
[WhiteElo "2497"]
[BlackElo "2026"]
[Result "1-0"]
[Round "03"]
[TimeControl "180+1"]
[Date "2022.11.16"]
[WhiteClock "0:00:12"]
[BlackClock "0:00:05"]

1. d4 {[%clk 0:03:00]}  Nf6 {[%clk 0:02:54]} 2. Nf3 {[%clk 0:03:01]}  g6 {[%clk 0:02:52]} 3. Bg5 {[%clk 0:03:01]}  Bg7 {[%clk 0:02:52]} 4. e3 {[%clk 0:03:01]}  O-O {[%clk 0:02:51]} 5. Bc4 {[%clk 0:03:01]}  d5 {[%clk 0:02:47]} 6. Bb3 {[%clk 0:03:01]}  c6 {[%clk 0:02:47]} 7. O-O {[%clk 0:03:00]}  b5 {[%clk 0:02:44]} 8. a4 {[%clk 0:03:00]}  b4 {[%clk 0:02:38]} 9. c4 {[%clk 0:02:58]}  bxc3 {[%clk 0:02:38]} 10. bxc3 {[%clk 0:02:54]}  Ba6 {[%clk 0:02:34]} 11. Re1 {[%clk 0:02:53]}  Ne4 {[%clk 0:02:31]} 12. Bf4 {[%clk 0:02:51]}  Nd7 {[%clk 0:02:31]} 13. Nfd2 {[%clk 0:02:48]}  Nd6 {[%clk 0:02:23]} 14. Bxd6 {[%clk 0:02:39]}  exd6 {[%clk 0:02:24]} 15. Na3 {[%clk 0:02:22]}  Qa5 {[%clk 0:02:19]} 16. Qc2 {[%clk 0:02:11]}  Rab8 {[%clk 0:02:16]} 17. Reb1 {[%clk 0:02:03]}  Qc7 {[%clk 0:02:13]} 18. h3 {[%clk 0:01:50]}  h5 {[%clk 0:02:12]} 19. Nf3 {[%clk 0:01:44]}  Nf6 {[%clk 0:02:08]} 20. c4 {[%clk 0:01:43]}  dxc4 {[%clk 0:02:05]} 21. Nxc4 {[%clk 0:01:40]}  Nd5 {[%clk 0:02:03]} 22. Ncd2 {[%clk 0:01:37]}  Nb4 {[%clk 0:01:59]} 23. Qc3 {[%clk 0:01:14]}  c5 {[%clk 0:01:51]} 24. Rc1 {[%clk 0:00:53]}  Qe7 {[%clk 0:01:49]} 25. Bc4 {[%clk 0:00:50]}  Bb7 {[%clk 0:01:43]} 26. Qa3 {[%clk 0:00:38]}  Ba8 {[%clk 0:01:41]} 27. dxc5 {[%clk 0:00:36]}  Bxa1 {[%clk 0:01:36]} 28. Qxa1 {[%clk 0:00:37]}  dxc5 {[%clk 0:01:35]} 29. Qe5 {[%clk 0:00:37]}  Qxe5 {[%clk 0:01:32]} 30. Nxe5 {[%clk 0:00:38]}  Rbe8 {[%clk 0:01:25]} 31. Nxg6 {[%clk 0:00:35]}  Rd8 {[%clk 0:01:15]} 32. Nf3 {[%clk 0:00:31]}  Rfe8 {[%clk 0:01:10]} 33. Nf4 {[%clk 0:00:29]}  Bxf3 {[%clk 0:01:04]} 34. gxf3 {[%clk 0:00:30]}  Re5 {[%clk 0:00:59]} 35. h4 {[%clk 0:00:25]}  Kg7 {[%clk 0:00:57]} 36. Kh2 {[%clk 0:00:25]}  Kf6 {[%clk 0:00:54]} 37. Bf1 {[%clk 0:00:20]}  Rd2 {[%clk 0:00:52]} 38. Kg1 {[%clk 0:00:18]}  Re8 {[%clk 0:00:51]} 39. Nxh5+ {[%clk 0:00:17]}  Ke7 {[%clk 0:00:52]} 40. Ng3 {[%clk 0:00:18]}  Rc8 {[%clk 0:00:50]} 41. Bc4 {[%clk 0:00:16]}  Nd3 {[%clk 0:00:47]} 42. Bxd3 {[%clk 0:00:17]}  Rxd3 {[%clk 0:00:48]} 43. Ne4 {[%clk 0:00:17]}  c4 {[%clk 0:00:46]} 44. Nc3 {[%clk 0:00:17]}  Rb8 {[%clk 0:00:41]} 45. Kf1 {[%clk 0:00:16]}  Rb3 {[%clk 0:00:40]} 46. Ne4 {[%clk 0:00:15]}  Rb4 {[%clk 0:00:40]} 47. Ke2 {[%clk 0:00:14]}  Ra3 {[%clk 0:00:39]} 48. Nc5 {[%clk 0:00:12]}  Ra2+ {[%clk 0:00:38]} 49. Kf1 {[%clk 0:00:12]}  Kd6 {[%clk 0:00:36]} 50. Ne4+ {[%clk 0:00:12]}  Ke5 {[%clk 0:00:36]} 51. Nc3 {[%clk 0:00:11]}  Ra3 {[%clk 0:00:35]} 52. f4+ {[%clk 0:00:12]}  Ke6 {[%clk 0:00:34]} 53. h5 {[%clk 0:00:13]}  Rbb3 {[%clk 0:00:31]} 54. Ne4 {[%clk 0:00:13]}  Ke7 {[%clk 0:00:30]} 55. h6 {[%clk 0:00:13]}  Kf8 {[%clk 0:00:29]} 56. Nf6 {[%clk 0:00:12]}  Rb6 {[%clk 0:00:28]} 57. h7 {[%clk 0:00:12]}  Kg7 {[%clk 0:00:27]} 58. Nd5 {[%clk 0:00:12]}  Rd6 {[%clk 0:00:23]} 59. e4 {[%clk 0:00:12]}  Rxa4 {[%clk 0:00:21]} 60. f3 {[%clk 0:00:11]}  Kxh7 {[%clk 0:00:21]} 61. f5 {[%clk 0:00:11]}  Rc6 {[%clk 0:00:19]} 62. Ke2 {[%clk 0:00:11]}  Ra2+ {[%clk 0:00:18]} 63. Ke3 {[%clk 0:00:11]}  Ra3+ {[%clk 0:00:19]} 64. Kf4 {[%clk 0:00:11]}  c3 {[%clk 0:00:18]} 65. Ke5 {[%clk 0:00:12]}  c2 {[%clk 0:00:18]} 66. Kd4 {[%clk 0:00:11]}  Rb3 {[%clk 0:00:15]} 67. Ne3 {[%clk 0:00:09]}  Rb4+ {[%clk 0:00:13]} 68. Kd3 {[%clk 0:00:09]}  Rb3+ {[%clk 0:00:13]} 69. Kd2 {[%clk 0:00:09]}  Rd6+ {[%clk 0:00:13]} 70. Ke2 {[%clk 0:00:09]}  Rdd3 {[%clk 0:00:12]} 71. Nxc2 {[%clk 0:00:08]}  Rxf3 {[%clk 0:00:13]} 72. Ne1 {[%clk 0:00:07]}  Rfe3+ {[%clk 0:00:13]} 73. Kd2 {[%clk 0:00:08]}  Rh3 {[%clk 0:00:13]} 74. Rc7 {[%clk 0:00:09]}  Rb2+ {[%clk 0:00:12]} 75. Nc2 {[%clk 0:00:09]}  Rh2+ {[%clk 0:00:11]} 76. Kd3 {[%clk 0:00:10]}  Ra2 {[%clk 0:00:11]} 77. Rxf7+ {[%clk 0:00:09]}  Kg8 {[%clk 0:00:12]} 78. Rc7 {[%clk 0:00:10]}  Rh3+ {[%clk 0:00:12]} 79. Kd4 {[%clk 0:00:10]}  a5 {[%clk 0:00:12]} 80. e5 {[%clk 0:00:10]}  Ra4+ {[%clk 0:00:12]} 81. Kd5 {[%clk 0:00:10]}  Rh6 {[%clk 0:00:12]} 82. f6 {[%clk 0:00:10]}  Ra2 {[%clk 0:00:08]} 83. Nd4 {[%clk 0:00:09]}  Rd2 {[%clk 0:00:07]} 84. Rd7 {[%clk 0:00:08]}  Rh4 {[%clk 0:00:06]} 85. f7+ {[%clk 0:00:08]}  Kf8 {[%clk 0:00:06]} 86. Ke6 {[%clk 0:00:07]}  Rdxd4 {[%clk 0:00:06]} 87. Ra7 {[%clk 0:00:08]}  Rh6+ {[%clk 0:00:04]} 88. Kf5 {[%clk 0:00:08]}  Rd8 {[%clk 0:00:04]} 89. e6 {[%clk 0:00:07]}  Rd5+ {[%clk 0:00:03]} 90. Ke4 {[%clk 0:00:05]}  Rd8 {[%clk 0:00:01]} 91. e7+ {[%clk 0:00:05]}  Kxf7 {[%clk 0:00:01]} 92. exd8=Q+ {[%clk 0:00:06]}  Kg6 {[%clk 0:00:01]} 93. Ra6+ {[%clk 0:00:06]}  Kh5 {[%clk 0:00:01]} 94. Rxh6+ {[%clk 0:00:07]}  Kxh6 {[%clk 0:00:02]} 95. Qxa5 {[%clk 0:00:07]}  Kg7 {[%clk 0:00:01]} 96. Qe5+ {[%clk 0:00:08]}  Kh7 {[%clk 0:00:02]} 97. Qg3 {[%clk 0:00:08]}  Kh6 {[%clk 0:00:02]} 98. Ke5 {[%clk 0:00:09]}  Kh7 {[%clk 0:00:03]} 99. Ke6 {[%clk 0:00:10]}  Kh6 {[%clk 0:00:04]} 100. Kf7 {[%clk 0:00:11]}  Kh5 {[%clk 0:00:05]} 101. Kf6 {[%clk 0:00:11]}  Kh6 {[%clk 0:00:05]} 102. Qh3# {[%clk 0:00:12]} 1-0


[Site "https://www.chess.com"]

[Event "Titled Tuesday Blitz November 15 Early 2022"]
[White "Mahdavi, Reza"]
[Black "Deac, Bogdan-Daniel"]
[WhiteFideId "12595926"]
[BlackFideId "1226380"]
[WhiteElo "2240"]
[BlackElo "2648"]
[Result "0-1"]
[Round "03"]
[TimeControl "180+1"]
[Date "2022.11.15"]
[WhiteClock "0:00:10"]
[BlackClock "0:00:11"]

1. e4 {[%clk 0:03:00]}  c6 {[%clk 0:02:48]} 2. d4 {[%clk 0:03:01]}  d5 {[%clk 0:02:48]} 3. e5 {[%clk 0:02:57]}  Bf5 {[%clk 0:02:47]} 4. Nf3 {[%clk 0:02:57]}  e6 {[%clk 0:02:47]} 5. Be2 {[%clk 0:02:58]}  Ne7 {[%clk 0:02:48]} 6. O-O {[%clk 0:02:50]}  Ng6 {[%clk 0:02:47]} 7. Ne1 {[%clk 0:02:47]}  h5 {[%clk 0:02:46]} 8. c3 {[%clk 0:02:46]}  Nd7 {[%clk 0:02:38]} 9. a4 {[%clk 0:02:43]}  c5 {[%clk 0:02:25]} 10. Na3 {[%clk 0:02:40]}  cxd4 {[%clk 0:02:14]} 11. cxd4 {[%clk 0:02:39]}  Rc8 {[%clk 0:02:08]} 12. Bd2 {[%clk 0:02:37]}  a6 {[%clk 0:01:59]} 13. Nac2 {[%clk 0:02:36]}  Qb6 {[%clk 0:01:50]} 14. b4 {[%clk 0:02:34]}  Be7 {[%clk 0:01:46]} 15. Bd3 {[%clk 0:02:31]}  Nh4 {[%clk 0:01:39]} 16. a5 {[%clk 0:02:22]}  Qc6 {[%clk 0:01:30]} 17. b5 {[%clk 0:02:15]}  axb5 {[%clk 0:01:29]} 18. Nb4 {[%clk 0:02:16]}  Qc7 {[%clk 0:01:22]} 19. Rc1 {[%clk 0:02:16]}  Qb8 {[%clk 0:01:19]} 20. Bxb5 {[%clk 0:02:15]}  Rxc1 {[%clk 0:01:13]} 21. Qxc1 {[%clk 0:02:16]}  Qd8 {[%clk 0:01:13]} 22. Nc6 {[%clk 0:02:01]}  bxc6 {[%clk 0:01:04]} 23. Qxc6 {[%clk 0:02:02]}  f6 {[%clk 0:01:04]} 24. a6 {[%clk 0:01:59]}  fxe5 {[%clk 0:01:04]} 25. dxe5 {[%clk 0:01:50]}  Ng6 {[%clk 0:01:02]} 26. Nf3 {[%clk 0:01:50]}  Bg4 {[%clk 0:00:37]} 27. Bc3 {[%clk 0:01:12]}  Nf4 {[%clk 0:00:23]} 28. Nd4 {[%clk 0:01:01]}  Kf7 {[%clk 0:00:18]} 29. Qxd7 {[%clk 0:01:01]}  Qxd7 {[%clk 0:00:18]} 30. Bxd7 {[%clk 0:01:02]}  Bc5 {[%clk 0:00:19]} 31. Nb3 {[%clk 0:00:51]}  Ba7 {[%clk 0:00:17]} 32. Bd2 {[%clk 0:00:45]}  Ne2+ {[%clk 0:00:15]} 33. Kh1 {[%clk 0:00:46]}  Rb8 {[%clk 0:00:16]} 34. Na5 {[%clk 0:00:44]}  Rb2 {[%clk 0:00:15]} 35. Be3 {[%clk 0:00:42]}  d4 {[%clk 0:00:14]} 36. Nc6 {[%clk 0:00:42]}  Bb6 {[%clk 0:00:12]} 37. Bg5 {[%clk 0:00:35]}  Ra2 {[%clk 0:00:12]} 38. Bc8 {[%clk 0:00:34]}  d3 {[%clk 0:00:12]} 39. Be3 {[%clk 0:00:34]}  Bxe3 {[%clk 0:00:07]} 40. fxe3+ {[%clk 0:00:35]}  Kg6 {[%clk 0:00:07]} 41. Bb7 {[%clk 0:00:24]}  d2 {[%clk 0:00:07]} 42. a7 {[%clk 0:00:25]}  Nc3 {[%clk 0:00:07]} 43. Ne7+ {[%clk 0:00:21]}  Kg5 {[%clk 0:00:06]} 44. a8=Q {[%clk 0:00:18]}  Rxa8 {[%clk 0:00:06]} 45. Bxa8 {[%clk 0:00:19]}  d1=Q {[%clk 0:00:06]} 46. Rxd1 {[%clk 0:00:20]}  Nxd1 {[%clk 0:00:07]} 47. g3 {[%clk 0:00:14]}  Nxe3 {[%clk 0:00:06]} 48. h4+ {[%clk 0:00:14]}  Kh6 {[%clk 0:00:05]} 49. Be4 {[%clk 0:00:15]}  g5 {[%clk 0:00:05]} 50. Ng8+ {[%clk 0:00:12]}  Kg7 {[%clk 0:00:05]} 51. Nf6 {[%clk 0:00:13]}  gxh4 {[%clk 0:00:06]} 52. gxh4 {[%clk 0:00:14]}  Nc4 {[%clk 0:00:06]} 53. Nd7 {[%clk 0:00:11]}  Kf7 {[%clk 0:00:05]} 54. Bd3 {[%clk 0:00:10]}  Nb2 {[%clk 0:00:05]} 55. Be4 {[%clk 0:00:10]}  Ke7 {[%clk 0:00:05]} 56. Nb6 {[%clk 0:00:11]}  Nd1 {[%clk 0:00:05]} 57. Kg1 {[%clk 0:00:10]}  Ne3 {[%clk 0:00:05]} 58. Nc8+ {[%clk 0:00:10]}  Kd7 {[%clk 0:00:04]} 59. Nb6+ {[%clk 0:00:10]}  Kc7 {[%clk 0:00:04]} 60. Na4 {[%clk 0:00:10]}  Nc4 {[%clk 0:00:04]} 61. Nc5 {[%clk 0:00:09]}  Nxe5 {[%clk 0:00:04]} 62. Kf2 {[%clk 0:00:06]}  Kd6 {[%clk 0:00:05]} 63. Nb7+ {[%clk 0:00:07]}  Ke7 {[%clk 0:00:05]} 64. Nc5 {[%clk 0:00:08]}  Kf6 {[%clk 0:00:05]} 65. Kg3 {[%clk 0:00:08]}  Nf7 {[%clk 0:00:05]} 66. Nd7+ {[%clk 0:00:09]}  Ke7 {[%clk 0:00:05]} 67. Nc5 {[%clk 0:00:09]}  e5 {[%clk 0:00:05]} 68. Bg6 {[%clk 0:00:09]}  Nd6 {[%clk 0:00:04]} 69. Nd3 {[%clk 0:00:08]}  Kf6 {[%clk 0:00:04]} 70. Bh7 {[%clk 0:00:06]}  e4 {[%clk 0:00:04]} 71. Nf2 {[%clk 0:00:05]}  Nf5+ {[%clk 0:00:03]} 72. Bxf5 {[%clk 0:00:05]}  Kxf5 {[%clk 0:00:03]} 73. Nh1 {[%clk 0:00:01]}  e3 {[%clk 0:00:03]} 74. Kg2 {[%clk 0:00:02]}  Kf4 {[%clk 0:00:03]} 75. Ng3 {[%clk 0:00:03]}  Bf3+ {[%clk 0:00:04]} 76. Kh2 {[%clk 0:00:02]}  e2 {[%clk 0:00:05]} 77. Nxe2+ {[%clk 0:00:03]}  Bxe2 {[%clk 0:00:05]} 78. Kh3 {[%clk 0:00:04]}  Bg4+ {[%clk 0:00:06]} 79. Kh2 {[%clk 0:00:05]}  Kf3 {[%clk 0:00:06]} 80. Kg1 {[%clk 0:00:06]}  Kg3 {[%clk 0:00:07]} 81. Kh1 {[%clk 0:00:06]}  Kxh4 {[%clk 0:00:08]} 82. Kg1 {[%clk 0:00:07]}  Kg5 {[%clk 0:00:09]} 83. Kh1 {[%clk 0:00:08]}  h4 {[%clk 0:00:10]} 84. Kh2 {[%clk 0:00:09]}  Bf5 {[%clk 0:00:11]} 85. Kg1 {[%clk 0:00:10]}  Kg4 {[%clk 0:00:11]} 0-1


[Site "https://www.chess.com"]

[Event "Titled Tuesday Blitz November 15 Early 2022"]
[White "Malka, Samuel"]
[Black "Sipila, Vilka"]
[WhiteFideId "20643675"]
[BlackFideId "505455"]
[WhiteElo "2461"]
[BlackElo "2347"]
[Result "0-1"]
[Round "03"]
[TimeControl "180+1"]
[Date "2022.11.16"]
[WhiteClock "0:00:37"]
[BlackClock "0:01:35"]

1. d4 {[%clk 0:02:59]}  Nf6 {[%clk 0:02:43]} 2. c4 {[%clk 0:02:59]}  g6 {[%clk 0:02:42]} 3. Nc3 {[%clk 0:03:00]}  Bg7 {[%clk 0:02:43]} 4. e4 {[%clk 0:02:59]}  d6 {[%clk 0:02:43]} 5. Nf3 {[%clk 0:02:59]}  O-O {[%clk 0:02:42]} 6. Be2 {[%clk 0:03:00]}  e5 {[%clk 0:02:42]} 7. O-O {[%clk 0:03:00]}  exd4 {[%clk 0:02:42]} 8. Nxd4 {[%clk 0:02:59]}  Re8 {[%clk 0:02:43]} 9. f3 {[%clk 0:02:59]}  c6 {[%clk 0:02:43]} 10. Bg5 {[%clk 0:02:42]}  h6 {[%clk 0:02:34]} 11. Bh4 {[%clk 0:02:40]}  g5 {[%clk 0:02:29]} 12. Bf2 {[%clk 0:02:39]}  d5 {[%clk 0:02:29]} 13. exd5 {[%clk 0:02:15]}  cxd5 {[%clk 0:02:29]} 14. c5 {[%clk 0:02:16]}  Nc6 {[%clk 0:02:28]} 15. Qd2 {[%clk 0:02:02]}  Nh5 {[%clk 0:02:10]} 16. Nxc6 {[%clk 0:01:53]}  bxc6 {[%clk 0:02:11]} 17. g3 {[%clk 0:01:49]}  Bh3 {[%clk 0:02:07]} 18. Rfe1 {[%clk 0:01:49]}  Qf6 {[%clk 0:02:05]} 19. Rad1 {[%clk 0:01:43]}  Re6 {[%clk 0:02:03]} 20. Bd4 {[%clk 0:01:41]}  Qe7 {[%clk 0:01:46]} 21. Bxg7 {[%clk 0:01:34]}  Nxg7 {[%clk 0:01:46]} 22. Bf1 {[%clk 0:01:25]}  Qxc5+ {[%clk 0:01:45]} 23. Kh1 {[%clk 0:01:24]}  Bxf1 {[%clk 0:01:43]} 24. Rxf1 {[%clk 0:01:23]}  Rae8 {[%clk 0:01:42]} 25. Rfe1 {[%clk 0:01:11]}  Nf5 {[%clk 0:01:40]} 26. Rxe6 {[%clk 0:01:10]}  Rxe6 {[%clk 0:01:41]} 27. Re1 {[%clk 0:01:09]}  Ne3 {[%clk 0:01:41]} 28. Nd1 {[%clk 0:01:05]}  Nc4 {[%clk 0:01:35]} 29. Qc3 {[%clk 0:00:37]}  d4 {[%clk 0:01:35]} 0-1


[Site "https://www.chess.com"]

[Event "Titled Tuesday Blitz November 15 Early 2022"]
[White "Mamedov, Edgar"]
[Black "Barbashin, Igor"]
[WhiteFideId "13739980"]
[BlackFideId "4155718"]
[WhiteElo "2183"]
[BlackElo "2138"]
[Result "1-0"]
[Round "03"]
[TimeControl "180+1"]
[Date "2022.11.16"]
[WhiteClock "0:00:43"]
[BlackClock "0:00:10"]

1. Nf3 {[%clk 0:03:00]}  Nf6 {[%clk 0:02:59]} 2. c4 {[%clk 0:03:01]}  d6 {[%clk 0:02:58]} 3. d4 {[%clk 0:03:00]}  g6 {[%clk 0:02:58]} 4. Nc3 {[%clk 0:03:00]}  Bg7 {[%clk 0:02:58]} 5. e4 {[%clk 0:03:00]}  O-O {[%clk 0:02:58]} 6. Be2 {[%clk 0:03:01]}  e5 {[%clk 0:02:58]} 7. d5 {[%clk 0:03:01]}  Nbd7 {[%clk 0:02:52]} 8. Be3 {[%clk 0:03:01]}  Ng4 {[%clk 0:02:51]} 9. Bg5 {[%clk 0:03:01]}  f6 {[%clk 0:02:45]} 10. Bh4 {[%clk 0:03:00]}  a6 {[%clk 0:02:40]} 11. Nd2 {[%clk 0:02:59]}  Nh6 {[%clk 0:02:37]} 12. f3 {[%clk 0:02:55]}  c6 {[%clk 0:02:21]} 13. O-O {[%clk 0:02:50]}  cxd5 {[%clk 0:02:13]} 14. Nxd5 {[%clk 0:02:48]}  Nb6 {[%clk 0:02:01]} 15. Bf2 {[%clk 0:02:45]}  Nxd5 {[%clk 0:02:00]} 16. cxd5 {[%clk 0:02:46]}  f5 {[%clk 0:01:56]} 17. Nc4 {[%clk 0:02:45]}  b5 {[%clk 0:01:52]} 18. Nb6 {[%clk 0:02:41]}  Rb8 {[%clk 0:01:51]} 19. Nxc8 {[%clk 0:02:41]}  Rxc8 {[%clk 0:01:50]} 20. a4 {[%clk 0:02:42]}  Bf6 {[%clk 0:01:30]} 21. axb5 {[%clk 0:02:38]}  axb5 {[%clk 0:01:31]} 22. Bxb5 {[%clk 0:02:32]}  Rb8 {[%clk 0:01:29]} 23. Qe2 {[%clk 0:02:32]}  Bh4 {[%clk 0:01:21]} 24. Be3 {[%clk 0:02:25]}  f4 {[%clk 0:01:17]} 25. Ba7 {[%clk 0:02:24]}  Rb7 {[%clk 0:01:13]} 26. Kh1 {[%clk 0:02:15]}  Qc7 {[%clk 0:01:08]} 27. Bg1 {[%clk 0:02:10]}  Rfb8 {[%clk 0:01:05]} 28. Rfc1 {[%clk 0:02:07]}  Qe7 {[%clk 0:00:59]} 29. Ra5 {[%clk 0:02:01]}  Qd8 {[%clk 0:00:39]} 30. b4 {[%clk 0:01:53]}  Nf7 {[%clk 0:00:38]} 31. Rb1 {[%clk 0:01:39]}  Qf8 {[%clk 0:00:34]} 32. Qc4 {[%clk 0:01:35]}  Bd8 {[%clk 0:00:30]} 33. Qc6 {[%clk 0:01:12]}  Bxa5 {[%clk 0:00:28]} 34. bxa5 {[%clk 0:01:13]}  Nd8 {[%clk 0:00:27]} 35. Qc4 {[%clk 0:01:11]}  Qe7 {[%clk 0:00:23]} 36. a6 {[%clk 0:01:10]}  Rc7 {[%clk 0:00:23]} 37. Qa4 {[%clk 0:01:04]}  Ra8 {[%clk 0:00:20]} 38. Bc6 {[%clk 0:00:53]}  Nxc6 {[%clk 0:00:18]} 39. dxc6 {[%clk 0:00:54]}  Qe8 {[%clk 0:00:17]} 40. Rb6 {[%clk 0:00:51]}  Rca7 {[%clk 0:00:16]} 41. Qc4+ {[%clk 0:00:46]}  Kg7 {[%clk 0:00:14]} 42. Rb7+ {[%clk 0:00:46]}  Kh6 {[%clk 0:00:12]} 43. Rxa7 {[%clk 0:00:45]}  Rxa7 {[%clk 0:00:12]} 44. Bxa7 {[%clk 0:00:45]}  Qa8 {[%clk 0:00:10]} 45. Bg1 {[%clk 0:00:43]} 1-0


[Site "https://www.chess.com"]

[Event "Titled Tuesday Blitz November 15 Early 2022"]
[White "Manon-og, Ramon Jr."]
[Black "Abrahamyan, Tatev"]
[WhiteFideId "5200776"]
[BlackFideId "13301918"]
[WhiteElo "2313"]
[BlackElo "2347"]
[Result "0-1"]
[Round "03"]
[TimeControl "180+1"]
[Date "2022.11.16"]
[WhiteClock "0:00:01"]
[BlackClock "0:00:23"]

1. e4 {[%clk 0:03:00]}  e6 {[%clk 0:02:57]} 2. d4 {[%clk 0:02:58]}  d5 {[%clk 0:02:56]} 3. Nd2 {[%clk 0:02:58]}  c5 {[%clk 0:02:55]} 4. exd5 {[%clk 0:02:56]}  Qxd5 {[%clk 0:02:52]} 5. dxc5 {[%clk 0:02:53]}  Nf6 {[%clk 0:02:49]} 6. Ngf3 {[%clk 0:02:49]}  Nbd7 {[%clk 0:02:44]} 7. Bc4 {[%clk 0:02:47]}  Qxc5 {[%clk 0:02:44]} 8. O-O {[%clk 0:02:47]}  Be7 {[%clk 0:02:43]} 9. c3 {[%clk 0:02:44]}  O-O {[%clk 0:02:42]} 10. Bb3 {[%clk 0:02:44]}  b6 {[%clk 0:02:39]} 11. Re1 {[%clk 0:02:38]}  Bb7 {[%clk 0:02:38]} 12. Bc2 {[%clk 0:02:36]}  Rfd8 {[%clk 0:02:24]} 13. Qe2 {[%clk 0:02:34]}  Rac8 {[%clk 0:02:14]} 14. Nf1 {[%clk 0:02:34]}  Qc7 {[%clk 0:02:06]} 15. Ng3 {[%clk 0:02:32]}  Nc5 {[%clk 0:02:05]} 16. Bg5 {[%clk 0:02:26]}  Ba6 {[%clk 0:01:59]} 17. Qe3 {[%clk 0:02:20]}  Bd3 {[%clk 0:01:55]} 18. Rac1 {[%clk 0:02:10]}  Bxc2 {[%clk 0:01:32]} 19. Rxc2 {[%clk 0:02:11]}  Nd3 {[%clk 0:01:28]} 20. Rd1 {[%clk 0:02:02]}  Bc5 {[%clk 0:01:27]} 21. Qe2 {[%clk 0:01:19]}  Nxf2 {[%clk 0:01:11]} 22. Rf1 {[%clk 0:00:51]}  N2e4+ {[%clk 0:01:01]} 23. Kh1 {[%clk 0:00:51]}  Nxg3+ {[%clk 0:00:52]} 24. hxg3 {[%clk 0:00:51]}  Qxg3 {[%clk 0:00:52]} 25. Bh4 {[%clk 0:00:33]}  Qg4 {[%clk 0:00:48]} 26. b4 {[%clk 0:00:24]}  Be7 {[%clk 0:00:35]} 27. Rd1 {[%clk 0:00:21]}  Rxd1+ {[%clk 0:00:32]} 28. Qxd1 {[%clk 0:00:21]}  Rd8 {[%clk 0:00:32]} 29. Rd2 {[%clk 0:00:22]}  Rxd2 {[%clk 0:00:31]} 30. Qxd2 {[%clk 0:00:22]}  h6 {[%clk 0:00:31]} 31. Qd3 {[%clk 0:00:20]}  Qh5 {[%clk 0:00:30]} 32. Kg1 {[%clk 0:00:20]}  Qd5 {[%clk 0:00:29]} 33. Qe2 {[%clk 0:00:19]}  Qc6 {[%clk 0:00:25]} 34. Be1 {[%clk 0:00:17]}  Nd5 {[%clk 0:00:25]} 35. Ne5 {[%clk 0:00:15]}  Qc7 {[%clk 0:00:25]} 36. Bg3 {[%clk 0:00:08]}  Qxc3 {[%clk 0:00:24]} 37. Kh2 {[%clk 0:00:01]}  Bd6 {[%clk 0:00:23]} 0-1


[Site "https://www.chess.com"]

[Event "Titled Tuesday Blitz November 15 Early 2022"]
[White "Martin, Lewis"]
[Black "Radovic, Luka"]
[WhiteFideId "410551"]
[BlackFideId "911569"]
[WhiteElo "2145"]
[BlackElo "2257"]
[Result "1-0"]
[Round "03"]
[TimeControl "180+1"]
[Date "2022.11.16"]
[WhiteClock "0:00:45"]
[BlackClock "0:00:16"]

1. e4 {[%clk 0:03:00]}  c5 {[%clk 0:02:42]} 2. Nf3 {[%clk 0:03:00]}  d6 {[%clk 0:02:42]} 3. d4 {[%clk 0:03:00]}  cxd4 {[%clk 0:02:41]} 4. Nxd4 {[%clk 0:03:01]}  Nf6 {[%clk 0:02:40]} 5. Nc3 {[%clk 0:03:01]}  a6 {[%clk 0:02:40]} 6. Bg5 {[%clk 0:03:01]}  e6 {[%clk 0:02:37]} 7. f4 {[%clk 0:03:00]}  h6 {[%clk 0:02:36]} 8. Bh4 {[%clk 0:02:58]}  Qb6 {[%clk 0:02:30]} 9. a3 {[%clk 0:02:56]}  Nbd7 {[%clk 0:02:27]} 10. Bf2 {[%clk 0:02:53]}  Qc7 {[%clk 0:02:27]} 11. Qf3 {[%clk 0:02:52]}  Be7 {[%clk 0:02:26]} 12. Bd3 {[%clk 0:02:46]}  b5 {[%clk 0:02:17]} 13. O-O {[%clk 0:02:35]}  Bb7 {[%clk 0:02:17]} 14. Rae1 {[%clk 0:02:33]}  O-O-O {[%clk 0:02:12]} 15. Rc1 {[%clk 0:02:01]}  Nc5 {[%clk 0:02:11]} 16. Rfe1 {[%clk 0:01:55]}  g5 {[%clk 0:01:55]} 17. fxg5 {[%clk 0:01:48]}  hxg5 {[%clk 0:01:52]} 18. b4 {[%clk 0:01:32]}  Ncd7 {[%clk 0:01:32]} 19. Ncxb5 {[%clk 0:01:31]}  axb5 {[%clk 0:01:01]} 20. Nxb5 {[%clk 0:01:29]}  Qb8 {[%clk 0:01:02]} 21. Na7+ {[%clk 0:01:19]}  Kc7 {[%clk 0:01:01]} 22. Bb5 {[%clk 0:01:14]}  Bxe4 {[%clk 0:00:27]} 23. Rxe4 {[%clk 0:01:05]}  Nxe4 {[%clk 0:00:28]} 24. Qxe4 {[%clk 0:01:05]}  d5 {[%clk 0:00:27]} 25. Qd4 {[%clk 0:00:54]}  Kb7 {[%clk 0:00:26]} 26. Bc6+ {[%clk 0:00:47]}  Ka6 {[%clk 0:00:16]} 27. b5+ {[%clk 0:00:45]} 1-0


[Site "https://www.chess.com"]

[Event "Titled Tuesday Blitz November 15 Early 2022"]
[White "Matinian, Nikita"]
[Black "Potapova, Margarita"]
[WhiteFideId "24129100"]
[BlackFideId "14126869"]
[WhiteElo "2422"]
[BlackElo "2272"]
[Result "1/2-1/2"]
[Round "03"]
[TimeControl "180+1"]
[Date "2022.11.16"]
[WhiteClock "0:00:14"]
[BlackClock "0:00:40"]

1. e4 {[%clk 0:03:00]}  c6 {[%clk 0:03:00]} 2. d4 {[%clk 0:02:59]}  d5 {[%clk 0:03:01]} 3. e5 {[%clk 0:03:00]}  Bf5 {[%clk 0:03:01]} 4. Nf3 {[%clk 0:03:01]}  e6 {[%clk 0:03:01]} 5. Be2 {[%clk 0:03:01]}  c5 {[%clk 0:03:00]} 6. Be3 {[%clk 0:03:01]}  Qb6 {[%clk 0:02:59]} 7. Nc3 {[%clk 0:02:58]}  Nc6 {[%clk 0:02:58]} 8. Na4 {[%clk 0:02:54]}  Qa5+ {[%clk 0:02:57]} 9. c3 {[%clk 0:02:54]}  c4 {[%clk 0:02:54]} 10. O-O {[%clk 0:02:47]}  b5 {[%clk 0:02:20]} 11. Nc5 {[%clk 0:02:47]}  Bxc5 {[%clk 0:02:21]} 12. dxc5 {[%clk 0:02:47]}  Nge7 {[%clk 0:02:19]} 13. Nd4 {[%clk 0:02:16]}  O-O {[%clk 0:02:14]} 14. f4 {[%clk 0:02:12]}  Nxd4 {[%clk 0:02:10]} 15. cxd4 {[%clk 0:02:08]}  b4 {[%clk 0:02:09]} 16. g4 {[%clk 0:02:08]}  Be4 {[%clk 0:02:08]} 17. Bf3 {[%clk 0:02:05]}  Qb5 {[%clk 0:02:01]} 18. Bxe4 {[%clk 0:02:01]}  dxe4 {[%clk 0:02:02]} 19. f5 {[%clk 0:02:01]}  Nd5 {[%clk 0:02:00]} 20. Qe2 {[%clk 0:02:02]}  a6 {[%clk 0:01:55]} 21. Rae1 {[%clk 0:01:39]}  c3 {[%clk 0:01:54]} 22. Qf2 {[%clk 0:01:34]}  Qd3 {[%clk 0:01:50]} 23. bxc3 {[%clk 0:01:25]}  bxc3 {[%clk 0:01:49]} 24. f6 {[%clk 0:01:24]}  g6 {[%clk 0:01:04]} 25. Qh4 {[%clk 0:01:21]}  Kh8 {[%clk 0:01:04]} 26. Bh6 {[%clk 0:01:15]}  Qxd4+ {[%clk 0:01:04]} 27. Kh1 {[%clk 0:01:14]}  e3 {[%clk 0:01:03]} 28. Bg7+ {[%clk 0:01:12]}  Kg8 {[%clk 0:01:03]} 29. Bxf8 {[%clk 0:01:08]}  Rxf8 {[%clk 0:00:44]} 30. Qh6 {[%clk 0:00:13]}  Qe4+ {[%clk 0:00:44]} 31. Kg1 {[%clk 0:00:13]}  Qxg4+ {[%clk 0:00:44]} 32. Kh1 {[%clk 0:00:13]}  Qe4+ {[%clk 0:00:42]} 33. Kg1 {[%clk 0:00:14]}  Qg4+ {[%clk 0:00:40]} 34. Kh1 {[%clk 0:00:14]}  Qe4+ {[%clk 0:00:40]} 35. Kg1 {[%clk 0:00:14]}  Qg4+ {[%clk 0:00:40]} 1/2-1/2


[Site "https://www.chess.com"]